Cogmind - Beta 14 @@@ ROGUE MODE // 2024.08.26 @ 14:48:52 Player: Zeia Result: Destroyed by 39-G72(R) with Subdweller Beam Cannon Performance ------------- Evolutions (0) 0 Regions Visited (2) 400 Robots Destroyed (15) 75 Value Destroyed (369) 369 Prototype IDs (2) 40 Alien Tech Used (0) 0 Bonus (0) 0 TOTAL SCORE: 884 Bonus ------- None Cogmind --------- Core Integrity 0/250 Matter 288/300 Energy 248/250 System Corruption 0% Temperature Cool (9) Movement Treading (240) Ox1 Location -10/Subcaves Parts ------- > --- POWER (1) -------- Ion Engine > --- PROPULSION (2) --- Light Treads > --- UTILITY (2) ------ Large Storage Unit Seismic Detector > --- WEAPON (2) ------- Light Assault Rifle Light Assault Rifle > --- INVENTORY (15) --- Ion Engine Light Ion Engine Aluminum Leg Compact Wheel High-capacity Matter Pod (200) Light Armor Plating Light Armor Plating Light Armor Plating Light Armor Plating Light Armor Plating Light Armor Plating Small Laser Small Laser Light Cannon Grenade Launcher Peak State ------------ > --- POWER ------------ Ion Engine > --- PROPULSION ------- Light Treads Light Treads > --- UTILITY ---------- Large Storage Unit Seismic Detector > --- WEAPON ----------- Medium Laser Small Laser > --- INVENTORY -------- Light Ion Engine Aluminum Leg Compact Wheel High-capacity Matter Pod Light Armor Plating Light Armor Plating Light Armor Plating Light Armor Plating Light Armor Plating Small Laser [Rating: 8] Favorites ----------- Power Ion Engine Engine Ion Engine Propulsion Light Treads Treads Light Treads Utility Seismic Detector Device Seismic Detector Storage Large Storage Unit Weapon Light Assault Rifle Energy Gun Small Laser Ballistic Gun Light Assault Rifle Build | -11 -10 -10 ------- Run | Yrd Mat Sub Slots Evolved . | . . . Power . | . . . Propulsion . | . . . Utility . | . . . Weapon . | . . . Parts Attached 13 | 8 5 . Power 3 | 2 1 . Engine 3 | 2 1 . Core . | . . . Reactor . | . . . Propulsion 2 | 2 . . Treads 2 | 2 . . Leg . | . . . Wheel . | . . . Hover . | . . . Flight . | . . . Utility 3 | 2 1 . Device 1 | 1 . . Storage 2 | 1 1 . Processor . | . . . Hackware . | . . . Protection . | . . . Artifact . | . . . Weapon 5 | 2 3 . Energy Gun 3 | 2 1 . Energy Cannon . | . . . Ballistic Gun 2 | . 2 . Ballistic Cannon . | . . . Launcher . | . . . Special Weapon . | . . . Impact Weapon . | . . . Slashing Weapon . | . . . Piercing Weapon . | . . . Special Melee Weapon . | . . . Unidentified Prototypes . | . . . Parts Lost 1 | . . 1 Power . | . . . Propulsion 1 | . . 1 Utility . | . . . Weapon . | . . . Highest Loss Streak 1 | . . 1 To Critical Strikes . | . . . Average Slot Usage (%) 99 | . 100 99 Engine 14 | . 14 14 Treads 27 | . 28 27 Device 14 | . 14 14 Storage 14 | . 14 14 Energy Gun 5 | . 10 . Ballistic Gun 22 | . 17 28 Peak Build Rating 8 | 7 8 8 Average Rating 7 | 5 7 7 On Entrance 5 | . 7 8 Naked Turns . | . . . Heaviest Build 29 | 14 29 28 Greatest Support 40 | 40 40 40 Greatest Overweight (x) . | . . . Average Overweight (x) . | . . . Largest Inventory Capacity 15 | 8 15 15 Average Capacity 14 | 7 13 15 Most Carried 15 | 6 15 15 Average Carried 13 | 4 12 15 Final Capacity 15 | 8 15 15 Final Carried 15 | 6 15 15 Class Distribution -------------------- 95% | Mutant 4% | Scavenger-Mutant Dominant Class ---------------- Mutant | -10/Materials Mutant | -10/Subcaves Resources | -11 -10 -10 ----------- Run | Yrd Mat Sub Matter Collected 554 | 218 336 . Remotely . | . . . Salvage Created 462 | 13 449 . Parts 28 | 3 25 . Haulers Intercepted 1 | . 1 . Recyclers Shooed . | . . . Parts Field Recycled . | . . . Retrieved Matter . | . . . Parts Self-Destructed 7 | . . 7 Prevented . | . . . Kills | -11 -10 -10 ------- Run | Yrd Mat Sub Combat Hostiles Destroyed 11 | . 11 . Guns 11 | . 11 . Classes Destroyed 5 | 1 4 . Tunneler 1 | 1 . . Hauler 1 | . 1 . Watcher 2 | . 2 . Swarmer 3 | . 3 . Grunt 8 | . 8 . Best Kill Streak 5 | 1 5 . Combat Bots Only 5 | . 5 . Max Kills in Single Turn 1 | 1 1 . Gunslinging . | . . . Exploded . | . . . Melee . | . . . Uniques/NPCs Destroyed . | . . . Combat | -11 -10 -10 -------- Run | Yrd Mat Sub Hostile Shots Fired 79 | . 70 9 Missed 22 | . 19 3 Damage Taken 821 | . 536 285 Core 258 | . 100 158 Absorbed by Shields . | . . . Core Remaining (%) 100 | 100 . . Volleys Fired 48 | 1 40 7 Largest 2 | 2 2 2 Hottest 90 | 90 90 40 Shots Fired 85 | 2 69 14 Gun 85 | 2 69 14 Cannon . | . . . Launcher . | . . . Special . | . . . Kinetic 43 | . 29 14 Thermal 42 | 2 40 . Explosive . | . . . Electromagnetic . | . . . Robot Hit Streak 9 | 2 9 9 Robot Miss Streak 3 | . 3 1 Penetration Max . | . . . Secondary Targets 1 | . 1 . Max Gunslinging Chain 1 | . 1 . Shots Hit Robots 60 | 2 46 12 Core Hits 32 | 1 29 2 Critical Kills . | . . . Critical Parts Destroyed . | . . . Critical Strikes . | . . . Melee Attacks . | . . . Impact . | . . . Slashing . | . . . Piercing . | . . . Sneak Attacks . | . . . Combat Hostiles . | . . . Follow-up Attacks . | . . . Damage Inflicted 588 | 22 474 92 Guns 585 | 22 471 92 Cannons . | . . . Explosions . | . . . Melee . | . . . Ramming 3 | . 3 . Kinetic 258 | . 166 92 Thermal 327 | 22 305 . Explosive . | . . . Electromagnetic . | . . . Impact . | . . . Slashing . | . . . Piercing . | . . . Highest Corruption . | . . . Average Corruption . | . . . Corruption Purged . | . . . Corruption Blocked . | . . . Overload Shots . | . . . Overflow Damage . | . . . Projectiles . | . . . Explosions . | . . . Melee . | . . . Knockbacks . | . . . Impact . | . . . Kinetic . | . . . Secondary . | . . . Self-Inflicted Damage . | . . . Shots . | . . . Rammed 1 | . 1 . Targets Rammed 1 | . 1 . Kicked . | . . . Crushed . | . . . Highest Temperature 315 | 30 315 . Average Temperature 114 | 18 117 . Received Heat Transfer 234 | . 198 36 Effects 3 | . 3 . Interference 3 | . 3 . Siege Activations . | . . . Robots Corrupted . | . . . Combat Hostiles . | . . . Parts Fried . | . . . Impact Corruptions . | . . . Robots Melted . | . . . Combat Hostiles . | . . . Parts Melted 1 | . 1 . Heat Transferred 844 | 62 782 . Parts Sabotaged . | . . . Parts Stolen . | . . . Parts Stripped . | . . . Power Chain Reactions . | . . . Alert | -11 -10 -10 ------- Run | Yrd Mat Sub Peak Influence 290 | 5 290 . Initial 3 | . 3 . Average 81 | 2 88 . Maximum Alert Level 1 | . 1 . Low Security (%) 89 | 100 88 . Level 1 10 | . 11 . Level 2 . | . . . Level 3 . | . . . Level 4 . | . . . Level 5 . | . . . High Security . | . . . Max Security . | . . . Squads Dispatched 2 | . 2 . Investigation . | . . . Extermination . | . . . Reinforcement 2 | . 2 . Assault . | . . . Garrison . | . . . Intercept . | . . . Searches Triggered . | . . . Construction Impeded . | . . . Haulers Reinforced . | . . . Active Scanning Responses . | . . . Cargo Convoy Interrupts . | . . . Stealth | -11 -10 -10 --------- Run | Yrd Mat Sub Distress Signals 2 | . 2 . Communications Jammed . | . . . Distress Signals . | . . . Times Spotted 25 | . 23 2 Peak Tracking Total 8 | . 8 2 Tactical Retreats . | . . . Traps | -11 -10 -10 ------- Run | Yrd Mat Sub Traps Triggered 1 | . . 1 Indirectly . | . . . Trap Hack Attempts . | . . . Triggered . | . . . Disarmed . | . . . Reprogrammed . | . . . Reused . | . . . Traps Extracted . | . . . Installed . | . . . Triggered . | . . . Machines | -11 -10 -10 ---------- Run | Yrd Mat Sub Machines Disabled . | . . . Max in Single Turn . | . . . Machines Repaired . | . . . Machines Dismantled . | . . . Machines Sabotaged . | . . . Overloaded Fab Kills . | . . . Hacking | -11 -10 -10 --------- Run | Yrd Mat Sub Machines Accessed 3 | . 3 . Terminals 3 | . 3 . Fabricators . | . . . Repair Stations . | . . . Recycling Units . | . . . Scanalyzers . | . . . Garrison Access . | . . . Total Hacks 7 | . 7 . Successful 5 | . 5 . Failed 2 | . 2 . Catastrophic 1 | . 1 . Database Lockouts . | . . . Manual 6 | . 6 . Terminals 7 | . 7 . Fabricators . | . . . Repair Stations . | . . . Recycling Units . | . . . Scanalyzers . | . . . Garrison Access . | . . . Terminal Hacks 5 | . 5 . Robot Analysis 2 | . 2 . Prototype ID Bank 1 | . 1 . Alert Level 1 | . 1 . Unreport Threat 1 | . 1 . Fabricator Hacks . | . . . Repair Station Hacks . | . . . Recycling Unit Hacks . | . . . Scanalyzer . | . . . Garrison Access Hacks . | . . . Unauthorized Hacks . | . . . Terminals . | . . . Fabricators . | . . . Repair Stations . | . . . Recycling Units . | . . . Scanalyzers . | . . . Garrison Access . | . . . Data Cores Recovered . | . . . Used . | . . . Hacking Detections 3 | . 3 . Full Trace Events . | . . . Feedback Events . | . . . Feedback Blocked . | . . . Robot Schematics Acquired . | . . . Robots Built . | . . . Authchips . | . . . Time . | . . . Total Robot Build Rating . | . . . Part Schematics Acquired . | . . . Parts Built . | . . . Authchips . | . . . Time . | . . . Total Part Build Rating . | . . . Parts Repaired . | . . . Time . | . . . Parts Recycled . | . . . Recycled Matter . | . . . Retrieved Matter . | . . . Retrieved Components . | . . . Parts Scanalyzed . | . . . Part Schematics Acquired . | . . . Parts Damaged . | . . . Bothacking | -11 -10 -10 ------------ Run | Yrd Mat Sub Used RIF Installer . | . . . Robots Hacked . | . . . Non-combat . | . . . Combat . | . . . Robot Hacks Applied . | . . . Relay Couplers Released . | . . . Fabnet Peak Effective % . | . . . Robots Rewired . | . . . Allies Hacked . | . . . Hacks Repelled . | . . . Allies | -11 -10 -10 -------- Run | Yrd Mat Sub Total Allies . | . . . Largest Group . | . . . Highest-Rated Group . | . . . Highest-Rated Ally . | . . . Total Orders . | . . . Ally Attacks . | . . . Total Damage . | . . . Kills . | . . . Allies Corrupted . | . . . Allies Melted . | . . . Intel | -11 -10 -10 ------- Run | Yrd Mat Sub Robot Analysis Total 2 | . 2 . Derelict Logs Recovered 2 | . . 2 Drone Launches . | . . . Drone Recoveries . | . . . Exploration | -11 -10 -10 ------------- Run | Yrd Mat Sub Turns Passed 1751 | 91 916 744 Spaces Moved 956 | 48 453 455 Core 5 | 5 . . Treads 951 | 43 453 455 Legs . | . . . Wheels . | . . . Hover . | . . . Flight . | . . . Fastest Speed 50 | 50 160 160 Average Speed 159 | 148 160 160 Slowest Speed 160 | 160 160 160 Overloaded Moves . | . . . Propulsion Burnouts . | . . . Robots Hopped . | . . . Cave-ins Triggered . | . . . Exploration Rate (%) 35 | 5 72 30 Regions Visited 2 Branch Regions 1 Pre-discovered Areas 2 | . . 2 Known Exits Taken . | . . . Unknown Exits Taken 2 | 1 1 . Scrap Searched . | . . . Spaces Dug . | . . . Terrain Destroyed . | . . . Melee . | . . . Projectile . | . . . AOE . | . . . Terrain Rammed . | . . . Walls Destroyed . | . . . Machines Disabled . | . . . Actions | -11 -10 -10 --------- Run | Yrd Mat Sub Total 1106 | 62 582 462 Wait 68 | . 68 . Move 954 | 47 452 455 Hop . | . . . Pick Up 15 | 6 9 . Fast Attach 8 | 6 2 . Attach 1 | 1 . . Detach 2 | . 2 . Swap 4 | 1 3 . Drop 5 | . 5 . Fire 48 | 1 40 7 Melee . | . . . Ram . | . . . Kick . | . . . Crush 1 | . 1 . Escape Stasis . | . . . Rewire . | . . . Trap . | . . . Miscellaneous . | . . . Route ------- -11/Scrapyard -10/Materials (discovered 3 exits: [*Mat] / [*Min] / [*Sub]) -10/Subcaves History --------- Turn | Location | Event 11 | -11/Scrapyard | Discovered new exit (range 15) 92 | -11/Scrapyard | Entered Materials 265 | -10/Materials | Discovered new exit (range 8) 307 | -10/Materials | Build established: Mutant 710 | -10/Materials | Discovered new exit (range 15) 998 | -10/Materials | Discovered new exit (range 7) 1008 | -10/Materials | Entered Subcaves 1078 | -10/Subcaves | Shifting Twisted Machinery released Battle Rifle 1525 | -10/Subcaves | Learned location of Zion (-7) 1543 | -10/Subcaves | Learned location of Mines (-9) 1738 | -10/Subcaves | Core integrity fell below 50% 1740 | -10/Subcaves | Core integrity fell below 20% 1752 | -10/Subcaves | Destroyed by 39-G72(R) with Subdweller Beam Cannon Last Messages --------------- 00962_ R-06 Scavenger collects Aluminum Leg. 00967_ R-06 Scavenger collects Ion Engine. 00967_ A-02 Transporter destroyed. 00968_ K-01 Serf collects debris. 00973_ Acquired 4 matter. 00998_ EXIT=FOUND LOCATION=UNKNOWN AMBIENT_HEAT=-10 GOAL=ESCAPE Battle Rifle falls loose from the Twisted Machinery. 01090_ Triggered Shrapnel Trap. 01090_ An expanding cloud of shrapnel blasts out in all directions. 01525_ Acquired derelict log, extracted data. World map updated: -7/Zion. 01543_ Acquired derelict log, extracted data. World map updated: -9/Mines. 01738_ Lgt. Treads destroyed. 01739_ ZQ-JH2(R) destroyed. Map ----- +----------------------------------------------------+ | ???????????????????????????# ### #???????? | | ???????????????????????????# #### #???????? | | ???????????????????????????# #?## ## #???????? | | ???????????????????????????## ### ####???????? | | ????????????????????????????# ###### ##????????? | | ???????????????????????????## ###?# ##???????? | | ???????????????????????????# ### #???????? | | ???????????????????????????# #???????? | | ???????????????????????????## ## #???????? | | ????????????????????????????## ### #???????? | | ?????????????????????????????### #?# #???????? | | ???????????????????????????????# ##?# #???????? | | ???????????????????????????????# #??# #???????? | | ???????????????????????????????# #??## #???????? | | ???????????????????????????????# #???###???????? | | ???????????????????????????????# #?????????????? | | ?????????????????????????#####?# #?????????????? | | ????????????????????????## #;#?# #?????????????? | | ???????????????????????## ### #?????????????? | | ???????????????????????# # #?????????????? | | ?????????????????????### ;## ##????????????? | | ????????????????????## ;# ;#?####???????? | | ????????????????????# ### ##??????? | | ??????????????# ### ## #??????? | | ??????????????# ## ## #??????? | | ???????????????# %@ #?# #??????? | | ?????????????????# ### #???????? | | ?????????????????## R ; ## #???????? | | ??????????????????## ;;# % #???????? | | ???????????????????# ## #???????? | | ?????????????????? ## #???????? | | ????????????????? ## ##???????? | | ???????????????? #### % % #????????? | | ???????????????## #??# % ##???????? | | ????????????????# #??## #???????? | | ????????????????# ???# #???????? | | ???????????????? ???# % ####???????? | | ????????????????### ##???## ##### #??????????? | | ??????????????????#####??????###???####??????????? | | ?????????????????????????????????????????????????? | | ?????????????????????????????????????????????????? | | ?????????????????????????????????????????????????? | | ?????????????????????????????????????????????????? | | ?????????????????????????????????????????????????? | | ?????????????????????????????????????????????????? | | ?????????????????????????????????????????????????? | | ?????????????????????????????????????????????????? | | ?????????????????????????????????????????????????? | | ?????????????????????????????????????????????????? | | ?????????????????????????????????????????????????? | +----------------------------------------------------+ Best States ------------- Heat Dissipation 25 Energy Generation 10 Energy Capacity 250 Matter Stores 300 Matter Capacity 300 Sight Range 16 Terrain Scan Density 10 Evasion (%) 40 Recoil Reduction 2 Item Schematics ----------------- None Robot Schematics ------------------ None Fabricated ------------ Nothing Alien Tech Used ----------------- None Achievements -------------- None Challenges ------------ None Game ------ Seed ZioniteRagnarokPick Manual? 0 Play Time 00:10:26 Cumulative 54.4 hours Start 2024.08.22 @ 19:40:50 End 2024.08.26 @ 14:48:52 Sessions 2 Manual Loads 0 Difficulty Rogue Special Mode None Game No. 47 Rogue 47 Adventurer 0 Explorer 0 Win Type - Total 1 Types 1/0/0/0/0/0/0/0/0 Lore% 45 Gallery% 40 Achievement% 36 Wizard Run 0 Options --------- Layout 1 ASCII 0 Keyboard 1 Movement Vi Keybinds 0 Fullscreen 1 Font 48/Tamsyn++ Map View 50x35 Zoom Use 0% Tactical HUD 1 Map Filters NONE Filters NONE Steam 1 RUN: 0fde7674-5aef-4f1b-8574-f36ba7cfda78